Cogmind - Beta 15 @@@ ROGUE MODE // 2025.08.24 @ 17:53:18 Player: Genericgamer16 Result: Destroyed by D-53 Grenadier with Mini Grenade Launcher Performance ------------- Evolutions (0) 0 Regions Visited (4) 800 Robots Destroyed (15) 75 Value Destroyed (374) 374 Prototype IDs (0) 0 Alien Tech Used (0) 0 Bonus (0) 0 TOTAL SCORE: 1249 Bonus ------- None Cogmind --------- Core Integrity 0/250 Matter 207/300 Energy 125/125 System Corruption 0% Temperature Cool (0) Movement Flying (200) Ox2 Location -9/Mines Parts ------- > --- POWER (1) -------- Light Ion Engine > --- PROPULSION (2) --- Flight Unit > --- UTILITY (2) ------ Small Storage Unit Core Shielding > --- WEAPON (2) ------- (None) > --- INVENTORY (8) ---- Ion Engine Ion Engine High-capacity Battery (250) Large Matter Pod (150) ECM Suite Mining Laser Blade Trap Peak State ------------ > --- POWER ------------ Ion Engine > --- PROPULSION ------- Aluminum Leg Aluminum Leg > --- UTILITY ---------- Small Storage Unit Core Shielding > --- WEAPON ----------- Small Laser Small Laser > --- INVENTORY -------- Ion Engine Light Ion Engine Wheel Compact Wheel Hover Unit Large Matter Pod EM Pulse Gun [Rating: 7] Favorites ----------- Power Ion Engine Engine Ion Engine Propulsion Aluminum Leg Leg Aluminum Leg Wheel Wheel Flight Unit Flight Unit Utility Small Storage Unit Device ECM Suite Storage Small Storage Unit Protection Core Shielding Weapon Assault Rifle Energy Gun Small Laser Ballistic Gun Assault Rifle Build | -11 -10 -10 -10 -9 ------- Run | Yrd Mat Min Exi Min Slots Evolved . | . . . . . Power . | . . . . . Propulsion . | . . . . . Utility . | . . . . . Weapon . | . . . . . Parts Attached 23 | 6 10 2 . 5 Power 3 | 1 . . . 2 Engine 3 | 1 . . . 2 Core . | . . . . . Reactor . | . . . . . Propulsion 8 | 2 5 . . 1 Treads . | . . . . . Leg 5 | 2 3 . . . Wheel 2 | . 2 . . . Hover . | . . . . . Flight 1 | . . . . 1 Utility 5 | 1 3 1 . . Device 2 | . 2 . . . Storage 1 | 1 . . . . Processor . | . . . . . Hackware . | . . . . . Protection 2 | . 1 1 . . Artifact . | . . . . . Weapon 7 | 2 2 1 . 2 Energy Gun 2 | 2 . . . . Energy Cannon . | . . . . . Ballistic Gun 5 | . 2 1 . 2 Ballistic Cannon . | . . . . . Launcher . | . . . . . Special Weapon . | . . . . . Impact Weapon . | . . . . . Slashing Weapon . | . . . . . Piercing Weapon . | . . . . . Special Melee Weapon . | . . . . . Unidentified Prototypes . | . . . . . Parts Lost 4 | . . . . 4 Power . | . . . . . Propulsion 2 | . . . . 2 Utility . | . . . . . Weapon 2 | . . . . 2 Highest Loss Streak 4 | . . . . 4 To Critical Strikes . | . . . . . Average Backups 6 | 1 7 7 7 6 Power 1 | . 1 1 1 1 Propulsion 2 | 1 2 2 2 1 Utility 2 | . 2 2 3 3 Weapon 1 | . 1 1 1 1 Tool/Special . | . . . . . Unused Backups 7 | . 3 1 . 3 Power 1 | . 1 . . . Propulsion 1 | . 1 . . . Utility 3 | . 1 . . 2 Weapon 2 | . . 1 . 1 Tool/Special . | . . . . . Average Slot Usage (%) 97 | . 95 100 100 97 Engine 14 | . 14 14 14 14 Leg 13 | . 27 . . 14 Wheel 14 | . . 28 28 11 Device 4 | . 7 3 . . Storage 14 | . 14 14 14 14 Protection 8 | . 1 10 14 14 Energy Gun 9 | . 22 . . . Ballistic Gun 18 | . 5 28 28 26 Peak Build Rating 7 | 6 7 7 7 7 Average Rating 6 | 4 6 7 7 6 On Entrance 5 | . 6 7 7 7 Naked Turns . | . . . . . Heaviest Build 17 | 12 16 17 16 14 Greatest Support 26 | 20 26 26 26 26 Greatest Overweight (x) 2 | 1 . . . 2 Average Overweight (x) . | . . . . . Largest Inventory Capacity 8 | 8 8 8 8 8 Average Capacity 7 | 6 8 8 8 8 Most Carried 8 | 4 8 8 8 8 Average Carried 7 | 2 7 7 8 7 Final Capacity 8 | 8 8 8 8 8 Final Carried 8 | 4 8 8 8 7 Class Distribution -------------------- 96% | Mutant 3% | Scavenger-Mutant Dominant Class ---------------- Mutant | -10/Materials Mutant | -10/Mines Mutant | -10/Exiles Scavenger-Mutant | -9/Mines Resources | -11 -10 -10 -10 -9 ----------- Run | Yrd Mat Min Exi Min Matter Collected 656 | 186 336 88 . 46 Remotely . | . . . . . Salvage Created 441 | . 343 52 . 46 Parts 24 | . 16 3 . 5 Haulers Intercepted . | . . . . . Recyclers Shooed 1 | . . 1 . . Parts Field Recycled . | . . . . . Retrieved Matter . | . . . . . Parts Self-Destructed . | . . . . . Prevented . | . . . . . Kills | -11 -10 -10 -10 -9 ------- Run | Yrd Mat Min Exi Min Combat Hostiles Destroyed 14 | . 8 3 . 3 Guns 14 | . 8 3 . 3 Classes Destroyed 3 | . 2 1 . . Operator 1 | . 1 . . . Swarmer 6 | . . 3 . 3 Grunt 8 | . 8 . . . Best Kill Streak 3 | . 2 3 . 3 Combat Bots Only 3 | . 2 3 . 3 Max Kills in Single Turn 1 | . 1 1 . 1 Gunslinging . | . . . . . Exploded . | . . . . . Melee . | . . . . . Uniques/NPCs Destroyed . | . . . . . Combat | -11 -10 -10 -10 -9 -------- Run | Yrd Mat Min Exi Min Hostile Shots Fired 94 | . 48 15 . 31 Missed 19 | . 9 6 . 4 Hits 75 | . 39 9 . 27 Projectile 75 | . 39 9 . 27 AOE 14 | . . . . 14 Critical Strikes 1 | . 1 . . . Damage Taken 1257 | . 482 76 . 699 Core 258 | . 94 9 . 155 Absorbed by Shields . | . . . . . Redirected to Shielding 37 | . 8 . . 29 Core Remaining (%) 100 | 100 . . . . Volleys Fired 71 | . 56 5 1 9 Largest 2 | . 2 2 2 2 Hottest 80 | . 80 40 40 40 Shots Fired 142 | . 112 10 2 18 Gun 142 | . 112 10 2 18 Cannon . | . . . . . Launcher . | . . . . . Special . | . . . . . Kinetic 56 | . 26 10 2 18 Thermal 86 | . 86 . . . Explosive . | . . . . . Electromagnetic . | . . . . . Robot Hit Streak 9 | . 9 5 . 2 Robot Miss Streak 5 | . 5 5 . 3 Penetration Max . | . . . . . Secondary Targets 1 | . . 1 . . Max Gunslinging Chain 1 | . . 1 . . Shots Hit Robots 66 | . 54 5 . 7 Core Hits 26 | . 19 3 . 4 Critical Kills . | . . . . . Critical Parts Destroyed 1 | . 1 . . . Critical Strikes 1 | . 1 . . . Destroy 1 | . 1 . . . Melee Attacks . | . . . . . Impact . | . . . . . Slashing . | . . . . . Piercing . | . . . . . Sneak Attacks . | . . . . . Combat Hostiles . | . . . . . Follow-up Attacks . | . . . . . Damage Inflicted 756 | . 623 70 . 63 Guns 753 | . 623 67 . 63 Cannons . | . . . . . Explosions . | . . . . . Melee . | . . . . . Ramming 3 | . . 3 . . Kinetic 282 | . 152 67 . 63 Thermal 471 | . 471 . . . Explosive . | . . . . . Electromagnetic . | . . . . . Impact . | . . . . . Slashing . | . . . . . Piercing . | . . . . . Highest Corruption . | . . . . . Average Corruption . | . . . . . Corruption Purged . | . . . . . Corruption Blocked . | . . . . . Overload Shots . | . . . . . Overflow Damage . | . . . . . Projectiles . | . . . . . Explosions . | . . . . . Melee . | . . . . . Knockbacks . | . . . . . Impact . | . . . . . Kinetic . | . . . . . Secondary . | . . . . . Self-Inflicted Damage 1 | . . 1 . . Shots . | . . . . . Rammed 2 | . . 2 . . Targets Rammed 2 | . . 2 . . Kicked . | . . . . . Crushed . | . . . . . Highest Temperature 280 | . 280 . . . Average Temperature 80 | . 80 . . . Received Heat Transfer 285 | . 285 . . . Effects 1 | . 1 . . . Energy Bleed 1 | . 1 . . . Siege Activations . | . . . . . Martial Activations . | . . . . . Shielding Activations . | . . . . . Robots Disrupted . | . . . . . Combat Hostiles . | . . . . . Robots Corrupted . | . . . . . Combat Hostiles . | . . . . . Parts Fried . | . . . . . Impact Corruptions . | . . . . . Robots Melted . | . . . . . Combat Hostiles . | . . . . . Parts Melted 1 | . 1 . . . Heat Transferred 1075 | . 1075 . . . Parts Sabotaged . | . . . . . Parts Stolen . | . . . . . Parts Stripped . | . . . . . Power Chain Reactions . | . . . . . Alert | -11 -10 -10 -10 -9 ------- Run | Yrd Mat Min Exi Min Maximum Alert Level . | . . . . . Low Security (%) 100 | 100 100 100 . 100 Level 1 . | . . . . . Level 2 . | . . . . . Level 3 . | . . . . . Level 4 . | . . . . . Level 5 . | . . . . . High Security . | . . . . . Max Security . | . . . . . Peak Influence 70 | . 60 70 . 60 Initial 6 | . . 6 . . Average 19 | . 20 19 . 36 Influence Increases 355 | . 215 70 . 70 Destroy 0b10 Robot/C 280 | . 160 60 . 60 Destroy 0b10 Robot/NC 5 | . 5 . . . Destroy Leader 60 | . 40 10 . 10 Successful Hack 9 | . 9 . . . Destroy Structure 1 | . 1 . . . Influence Decreases 355 | . 198 57 30 70 Entered New Map 41 | . . 11 30 . Time Decay 284 | . 198 46 . 40 Lost Part 30 | . . . . 30 Squads Dispatched 2 | . 2 . . . Investigation . | . . . . . Extermination . | . . . . . Reinforcement 2 | . 2 . . . Assault . | . . . . . Garrison . | . . . . . Intercept . | . . . . . Searches Triggered . | . . . . . Construction Impeded . | . . . . . Haulers Reinforced . | . . . . . Active Scanning Responses . | . . . . . Cargo Convoy Interrupts . | . . . . . Stealth | -11 -10 -10 -10 -9 --------- Run | Yrd Mat Min Exi Min Distress Signals 1 | . 1 . . . Communications Jammed . | . . . . . Distress Signals . | . . . . . Times Spotted 21 | . 13 3 . 5 Peak Tracking Total 3 | . 2 3 . 3 Tactical Retreats . | . . . . . Traps | -11 -10 -10 -10 -9 ------- Run | Yrd Mat Min Exi Min Traps Triggered . | . . . . . Indirectly . | . . . . . Trap Hack Attempts . | . . . . . Triggered . | . . . . . Disarmed . | . . . . . Reprogrammed . | . . . . . Reused . | . . . . . Traps Extracted . | . . . . . Installed . | . . . . . Triggered . | . . . . . Most Traps Carried 1 | . . 1 1 1 Machines | -11 -10 -10 -10 -9 ---------- Run | Yrd Mat Min Exi Min Machines Disabled . | . . . . . Max in Single Turn . | . . . . . Machines Repaired . | . . . . . Machines Dismantled . | . . . . . Machines Sabotaged . | . . . . . Overloaded Fab Kills . | . . . . . Hacking | -11 -10 -10 -10 -9 --------- Run | Yrd Mat Min Exi Min Machines Accessed 10 | . 6 . 4 . Terminals 5 | . 5 . . . Fabricators . | . . . . . Repair Stations 1 | . 1 . . . Recycling Units . | . . . . . Scanalyzers . | . . . . . Garrison Access . | . . . . . Total Hacks 16 | . 12 . 4 . Successful 8 | . 4 . 4 . Failed 8 | . 8 . . . Catastrophic 1 | . 1 . . . Database Lockouts . | . . . . . Manual . | . . . . . Terminals 11 | . 11 . . . Fabricators . | . . . . . Repair Stations 1 | . 1 . . . Recycling Units . | . . . . . Scanalyzers . | . . . . . Garrison Access . | . . . . . Terminal Hacks 8 | . 4 . 4 . Record 5 | . 1 . 4 . Robot Analysis 1 | . 1 . . . Locate Traps 1 | . 1 . . . Investigation Status 1 | . 1 . . . Fabricator Hacks . | . . . . . Repair Station Hacks . | . . . . . Recycling Unit Hacks . | . . . . . Scanalyzer . | . . . . . Garrison Access Hacks . | . . . . . Unauthorized Hacks . | . . . . . Terminals . | . . . . . Fabricators . | . . . . . Repair Stations . | . . . . . Recycling Units . | . . . . . Scanalyzers . | . . . . . Garrison Access . | . . . . . Data Cores Recovered . | . . . . . Used . | . . . . . Hacking Detections 5 | . 5 . . . Full Trace Events . | . . . . . Feedback Events . | . . . . . Feedback Blocked . | . . . . . Robot Schematics Acquired . | . . . . . Robots Built . | . . . . . Authchips . | . . . . . Time . | . . . . . Total Robot Build Rating . | . . . . . Part Schematics Acquired . | . . . . . Parts Built . | . . . . . Authchips . | . . . . . Time . | . . . . . Total Part Build Rating . | . . . . . Parts Repaired . | . . . . . Time . | . . . . . Parts Recycled . | . . . . . Recycled Matter . | . . . . . Retrieved Matter . | . . . . . Retrieved Components . | . . . . . Parts Scanalyzed . | . . . . . Part Schematics Acquired . | . . . . . Parts Damaged . | . . . . . Bothacking | -11 -10 -10 -10 -9 ------------ Run | Yrd Mat Min Exi Min Used RIF Installer . | . . . . . Robots Hacked . | . . . . . Non-combat . | . . . . . Combat . | . . . . . Robot Hacks Applied . | . . . . . Relay Couplers Released . | . . . . . Fabnet Peak Effective % . | . . . . . Robots Rewired . | . . . . . Allies Hacked . | . . . . . Hacks Repelled . | . . . . . Allies | -11 -10 -10 -10 -9 -------- Run | Yrd Mat Min Exi Min Total Allies . | . . . . . Largest Group . | . . . . . Highest-Rated Group . | . . . . . Highest-Rated Ally . | . . . . . Total Orders . | . . . . . Ally Attacks . | . . . . . Total Damage . | . . . . . Kills . | . . . . . Allies Corrupted . | . . . . . Allies Melted . | . . . . . Intel | -11 -10 -10 -10 -9 ------- Run | Yrd Mat Min Exi Min Active Infowar (turns) 285 | . 237 48 . . ECM 285 | . 237 48 . . Robot Analysis Total 1 | . 1 . . . Derelict Logs Recovered 1 | . . 1 . . Drone Launches . | . . . . . Drone Recoveries . | . . . . . Exploration | -11 -10 -10 -10 -9 ------------- Run | Yrd Mat Min Exi Min Turns Passed 1549 | 94 649 206 513 87 Spaces Moved 1095 | 68 268 158 561 40 Core 10 | 10 . . . . Treads . | . . . . . Legs 350 | 58 262 . . 30 Wheels 733 | . 6 158 561 8 Hover . | . . . . . Flight 2 | . . . . 2 Fastest Speed 50 | 50 90 90 90 90 Average Speed 99 | 113 119 90 90 118 Slowest Speed 200 | 120 120 90 90 200 Overloaded Moves . | . . . . . Propulsion Burnouts . | . . . . . Robots Hopped . | . . . . . Potential Cave-ins . | . . . . . Cave-ins Triggered . | . . . . . Exploration Rate (%) 35 | 4 38 41 73 23 Regions Visited 4 Branch Regions 3 Pre-discovered Areas 1 | . . 1 . . Known Exits Taken . | . . . . . Unknown Exits Taken 4 | 1 1 1 1 . Scrap Searched 1 | . . 1 . . Spaces Dug . | . . . . . Terrain Destroyed . | . . . . . Melee . | . . . . . Projectile . | . . . . . AOE . | . . . . . Terrain Rammed . | . . . . . Walls Destroyed . | . . . . . Machines Disabled . | . . . . . Actions | -11 -10 -10 -10 -9 --------- Run | Yrd Mat Min Exi Min Total 1415 | 85 486 212 567 65 Wait 180 | 2 133 41 3 1 Move 1091 | 67 267 157 560 40 Hop . | . . . . . Pick Up 25 | 10 10 2 1 2 Fast Attach 2 | . 1 . . 1 Attach 8 | 6 1 . . 1 Detach . | . . . . . Swap 18 | . 9 2 1 6 Drop 18 | . 9 3 1 5 Fire 71 | . 56 5 1 9 Melee . | . . . . . Ram 2 | . . 2 . . Kick . | . . . . . Crush . | . . . . . Escape Stasis . | . . . . . Rewire . | . . . . . Trap . | . . . . . Miscellaneous . | . . . . . Route ------- -11/Scrapyard -10/Materials -10/Mines (discovered 2 exits: [*Mat] / *Exi) -10/Exiles (discovered 2 exits: [*Min x2]) -9/Mines History --------- Turn | Location | Event 17 | -11/Scrapyard | Discovered new exit (range 14) 95 | -11/Scrapyard | Entered Materials 315 | -10/Materials | Build established: Mutant 702 | -10/Materials | Discovered new exit (range 12) 744 | -10/Materials | Entered Mines 751 | -10/Mines | Met a Derelict bent on vengeance 757 | -10/Mines | Found a hidden stash of uninstalled traps 911 | -10/Mines | Learned location of Storage (-8) 927 | -10/Mines | Discovered new exit (range 4) 946 | -10/Mines | Deemed a non-threat by the Exiles lab entrance 946 | -10/Mines | Discovered new exit (range 5) 950 | -10/Mines | Entered Exiles 950 | -10/Exiles | Found Exiles lab abandoned 964 | -10/Exiles | Discovered new exit (range 15) 1110 | -10/Exiles | Discovered new exit (range 10) 1463 | -10/Exiles | Entered Mines 1468 | -9/Mines | Core integrity fell below 50% 1519 | -9/Mines | Assembled infested the area 1524 | -9/Mines | Assisted by a Guerilla fighting off Assembled 1539 | -9/Mines | Core integrity fell below 20% 1550 | -9/Mines | Destroyed by D-53 Grenadier with Mini Grenade Launcher Last Messages --------------- 01506_ Dropped Lgt. Assault Rifle. 01513_ Dropped Assault Rifle. 01513_ Acquired Lgt. Assault Rifle. 01519_ ALERT: Infestation in the mines, dispatching Demolisher response squad. 01524_ A derelict emerges from the shadows: "You need to get out of here! I've been tracking a group of Assembled to figure out where they're coming from, and they're closing on this area, come on!" 01535_ Q5-Y62(h): "I'll hold them off! Go on ahead or try to find another way!" 01540_ Q5-Y62(h) destroyed. 01542_ The unstable cave ceiling collapses. 01544_ Lgt. Assault Rifle destroyed. 01544_ Aluminum Leg destroyed. 01546_ The unstable cave ceiling collapses. 01546_ D-53 Grenadier destroyed. 01549_ The unstable cave ceiling collapses. 01550_ Lgt. Assault Rifle destroyed. Map ----- +----------------------------------------------------+ | ?????????????????????????????????????????????????? | | ?????????????????????????????????????????????????? | | ?????????????????????????????????????????????????? | | ?????????????????????????????????????????????????? | | ?????????????????????????????????????????????????? | | ?????????????????????????????????????????????????? | | ?????????????????????????????????????????????????? | | ?????????????????????????????????????????????????? | | ?????????????????????????????????????????????????? | | ???????????????#?????????????????????????????????? | | ??????????????? ?????????????????????????????????? | | ??????????????? ?????????????????????????????????? | | ??????????????# ?????????????????????????????????? | | ?????????????? ?????????????????##??????????????? | | ?????????????## ###????????????? ????????????? | | ?????????????# #???????????? ????????????? | | ?????????????# #???????????? ???????????? | | ?????????????? #??????????? ???????????? | | ?????????????# #??????????# ????????????? | | ?????????????? #?######??# #?????????????? | | ??????????????? ?## ### #??????????????? | | ???????????????# ### #???????????????? | | ??????????###### ## # u #???????????????? | | ?????????## ] #???????????????? | | ????????## #???????????????? | | ???????##! #### @ #???????????????? | | ??????## ##??# #???????????????? | | ??????# ##???# ##???????????????? | | ??????# #????# t#????????????????? | | ??????# #????# # #???????????????? | | ??????## #####?## #### t ????????????? | | ???????## ! =##### #???? ???????????? | | ????????####### = [ = # d #?????### ???????????? | | ????###########[#### ## % #????????? ???????????? | | ????# ## ## #?????????????????????? | | ????# ## ### %#?????????????????????? | | ????# ## ??# ##?????????????????????? | | ????# """ """ #?# #??????????????????????? | | ????# """ """ ####?? #??????????????????????? | | ????# """ """ #????? #??????????????????????? | | ????# """ """ #????? ??????????????????????? | | ????# #?????###??????????????????????? | | ?????##############??????????????????????????????? | | ?????????????????????????????????????????????????? | | ?????????????????????????????????????????????????? | | ?????????????????????????????????????????????????? | | ?????????????????????????????????????????????????? | | ?????????????????????????????????????????????????? | | ?????????????????????????????????????????????????? | | ?????????????????????????????????????????????????? | +----------------------------------------------------+ Best States ------------- Heat Dissipation 35 Energy Generation 10 Energy Capacity 250 Matter Stores 300 Matter Capacity 300 Sight Range 16 Terrain Scan Density 10 ECM Strength 1 Armor Coverage 150 Core Shielding 20 Evasion (%) 55 Item Schematics ----------------- None Robot Schematics ------------------ None Fabricated ------------ Nothing Repaired ---------- Nothing Alien Tech Used ----------------- None Achievements -------------- None Challenges ------------ None Game ------ Seed AlloyTiamatMount Manual? 0 Play Time 00:30:05 Cumulative 18.5 hours Start 2025.08.24 @ 17:20:38 End 2025.08.24 @ 17:53:18 Sessions 1 Manual Loads 0 Difficulty Rogue Special Mode None Game No. 24 Rogue 24 Adventurer 0 Explorer 0 Win Type - Total 0 Types 0/0/0/0/0/0/0/0/0/0 Lore% 12 Gallery% 18 Achievement% 18 Wizard Run 0 Options --------- Layout 1 ASCII 0 Keyboard 0 Movement Mouse Keybinds 0 Fullscreen 1 Font 24/Smallcaps Map View 50x35 Zoom Use 0% Tactical HUD 1 Map Filters NONE Filters NONE Steam 1 RUN: 3157eda1-4ab1-4772-ab96-c1d9b1c4c00b